bitfinex-derivatives/quotes_ETHF0:USTF0_20240913
["timestamp","ask_amount","ask_price","bid_price","bid_amount"]
[1726241703293,3.6223,2412.2,2411.8,0.41455]
[1726241703502,3.2078,2412.2,2411.4,3.2078]
[1726241703800,3.2078,2412.2,2411.8,0.41456]
[1726241704004,3.2078,2412.2,2411.7,3.2078]
[1726241704196,0.41446,2412.4,2412.0,3.62232]
[1726241704397,0.41446,2412.4,2412.1,0.4145]
[1726241704601,0.41443,2412.6,2412.3,0.41447]
[1726241704790,4.0811,2412.7,2411.9,3.2078]
[1726241704996,0.8734,2413.0,2411.9,3.2078]
[1726241705291,2.71115763,2415.0,2411.5,4.48]
[1726241705292,3.2078,2413.7,2413.1,0.41433]
[1726241705496,3.2078,2413.7,2412.6,0.41442]
[1726241705690,1.90907,2413.6,2412.1,3.2078]
[1726241705993,1.90907,2413.6,2412.4,3.2078]
[1726241705994,3.2078,2413.3,2412.4,3.2078]
[1726241706193,3.2078,2413.3,2412.0,5.349]
[1726241706194,3.2078,2413.4,2412.8,3.2078]
[1726241706398,0.4143,2413.4,2412.7,0.41439]
[1726241706694,3.2078,2413.8,2413.7,0.41423]
[1726241706887,3.2078,2413.8,2413.3,0.4143]
[1726241707093,3.2078,2413.8,2412.9,0.41437]
[1726241707292,0.9034,2413.7,2413.2,0.4143]
[1726241707489,3.2078,2414.1,2413.7,0.41423]
[1726241707797,3.2078,2414.1,2413.2,3.2078]
[1726241708000,3.2078,2414.1,2413.0,4.48]
[1726241708197,3.2078,2413.5,2413.2,3.2078]
[1726241708405,3.2078,2413.4,2412.3,3.2078]
[1726241708901,40.8,2413.3,2412.3,3.2078]
[1726241709305,4.0918,2413.2,2412.3,3.2078]
[1726241709505,0.41441,2412.7,2412.1,0.9197]
[1726241709800,0.9034,2413.5,2412.1,0.9197]
[1726241709801,0.41422,2413.8,2412.6,3.62221]
[1726241710001,3.2078,2413.6,2412.6,3.2078]
[1726241710203,1.7874,2413.7,2412.7,3.2078]
[1726241710405,1.7874,2413.7,2413.1,3.2078]
[1726241710591,0.41435,2413.1,2412.0,0.00140704]
[1726241710795,3.2078,2412.3,2412.0,0.00140704]
[1726241711097,4.48,2413.3,2412.0,0.00140704]
[1726241711098,0.41447,2412.4,2412.0,0.00140704]
[1726241711292,3.2078,2412.6,2412.0,0.00140704]
[1726241711500,0.4145,2412.2,2412.0,0.00140704]
[1726241711798,3.62231,2412.1,2412.0,0.00140704]
[1726241712102,1.03619,2412.4,2411.1,3.2078]
[1726241712103,3.2078,2412.3,2411.1,3.2078]
[1726241712297,3.2078,2411.9,2411.1,3.62248]
[1726241712502,0.41454,2412.0,2411.3,0.41465]
[1726241712691,0.41456,2411.8,2411.1,3.2078]
[1726241712890,0.41457,2411.8,2411.1,3.62248]
[1726241713094,0.8898,2412.1,2411.1,3.2078]
[1726241713298,0.8898,2412.1,2411.1,3.62247]
[1726241713299,3.2078,2411.9,2411.1,3.62247]
[1726241713502,0.41457,2411.8,2411.1,3.62247]
[1726241713698,3.2078,2411.8,2411.1,3.62247]
[1726241713905,3.62237,2411.8,2411.1,3.62247]
[1726241714107,3.2078,2411.8,2411.1,3.2078]
[1726241714301,0.9103,2412.0,2411.5,0.41461]
[1726241714507,0.9103,2412.0,2411.2,0.41465]
[1726241714508,0.41456,2411.8,2411.2,0.41465]
[1726241714708,0.41459,2411.7,2411.1,3.2078]
[1726241714905,0.9103,2412.0,2411.1,3.2078]
[1726241714906,0.41461,2411.6,2411.1,3.2078]
[1726241715098,0.9103,2412.0,2411.1,3.2078]
[1726241715298,0.41458,2411.7,2411.1,3.2078]
[1726241715508,0.41458,2411.7,2411.1,3.62247]
[1726241715805,3.2078,2411.9,2411.1,3.2078]
[1726241716012,0.4146,2411.6,2411.1,3.2078]
[1726241716197,3.2078,2411.6,2411.1,3.2078]
[1726241716400,3.6224,2411.6,2411.1,3.2078]
[1726241716607,3.2078,2411.6,2411.1,3.2078]
[1726241716811,0.9103,2412.0,2411.1,3.2078]
[1726241717002,4.1181,2412.0,2411.3,0.41464]
[1726241717198,0.41456,2411.9,2411.3,0.41464]
[1726241717397,0.41456,2411.9,2411.4,0.41463]
[1726241717610,0.9103,2412.0,2411.1,3.2078]
[1726241717910,1.03641,2411.8,2411.1,3.2078]
[1726241718107,1.94663,2412.0,2411.1,3.2078]
[1726241718407,0.41464,2411.4,2410.9,0.4147]
[1726241718599,3.2078,2411.8,2411.2,3.2078]
[1726241718796,3.2078,2411.8,2410.8,4.113]
[1726241719003,0.41462,2411.5,2411.0,0.41469]
[1726241719502,4.1181,2412.0,2410.8,0.41473]
[1726241719503,0.41465,2411.3,2410.8,0.41473]
[1726241719802,0.41466,2411.3,2410.8,0.41472]
[1726241720108,0.41473,2410.9,2410.7,3.2078]
[1726241720308,0.41469,2411.1,2410.6,0.41476]
[1726241720605,3.2078,2411.2,2410.1,3.2078]
[1726241720911,0.41472,2410.9,2410.1,3.2078]
[1726241721106,4.1267,2411.2,2410.1,3.2078]
[1726241721506,4.1267,2411.2,2410.4,0.4148]
[1726241721710,4.1267,2411.2,2410.3,0.41481]
[1726241721911,4.1267,2411.2,2410.1,3.2078]
[1726241721912,0.41481,2410.4,2410.1,3.2078]
[1726241722215,1.03719,2410.0,2408.7,3.2078]
[1726241722504,1.03719,2410.0,2409.5,0.41495]
[1726241722505,0.41488,2410.0,2409.5,0.41495]
[1726241722705,4.24491,2410.2,2409.7,0.41492]
[1726241722706,0.41485,2410.2,2409.7,0.41492]
[1726241722905,4.24477,2410.5,2409.7,0.41491]
[1726241723306,4.48,2410.7,2409.4,3.2078]
[1726241723307,3.62261,2410.4,2409.4,3.2078]
[1726241723502,3.62261,2410.4,2409.9,0.41488]
[1726241723703,3.2078,2410.4,2409.7,3.2078]
[1726241723902,3.62261,2410.4,2409.7,3.2078]
[1726241724110,0.41483,2410.3,2409.7,3.2078]
[1726241724409,0.41488,2410.0,2409.7,3.2078]
[1726241724616,3.2078,2410.4,2409.7,3.2078]
[1726241724912,0.9541,2410.3,2409.9,0.41487]
[1726241725207,0.41484,2410.2,2409.7,3.2078]
[1726241725415,0.41485,2410.2,2409.7,3.2078]
[1726241725608,0.41487,2410.0,2409.7,3.62272]
[1726241725813,0.41489,2410.0,2409.7,3.2078]
[1726241726015,0.41488,2410.0,2409.7,3.2078]
[1726241726416,0.41489,2409.9,2409.7,3.2078]
[1726241726710,1.99118,2410.3,2409.7,3.62272]
[1726241726711,0.41488,2410.0,2409.7,3.62272]
[1726241726902,1.0371,2410.2,2409.7,3.2078]
[1726241727106,0.4149,2409.9,2409.7,3.2078]
[1726241727309,1.0371,2410.2,2409.7,3.2078]
[1726241727503,1.03714,2410.1,2409.7,3.2078]
[1726241727701,0.41489,2410.0,2409.7,3.2078]
[1726241727906,0.41489,2409.9,2409.7,3.2078]
[1726241728111,0.41488,2410.0,2409.7,3.2078]
[1726241728307,3.2078,2409.8,2409.3,0.41499]
[1726241728620,3.2078,2409.8,2409.2,3.2078]
[1726241728621,0.41495,2409.6,2409.2,3.6228]
[1726241728816,3.2078,2409.8,2409.2,3.2078]
[1726241729012,0.41496,2409.5,2409.2,3.6228]
[1726241729214,3.2078,2409.8,2409.2,3.6228]
[1726241729411,3.2078,2409.8,2409.2,3.2078]
[1726241729624,2.16688139,2411.2,2409.2,3.2078]
[1726241729625,3.2078,2410.5,2409.6,3.2078]
[1726241729915,1.99118,2410.3,2409.3,4.1835]
[1726241730116,0.41488,2410.0,2409.7,0.41491]
[1726241730315,0.41486,2410.1,2409.3,4.1835]
[1726241730509,0.41488,2410.0,2409.3,5.22096]
[1726241730706,1.03714,2410.1,2409.6,3.2078]
[1726241730917,1.0371,2410.2,2409.7,0.41491]
[1726241731118,1.03714,2410.1,2409.6,3.62273]
[1726241731320,0.4149,2409.9,2409.7,0.41492]
[1726241731517,0.41492,2409.7,2409.6,3.2078]
[1726241732420,0.9541,2410.3,2409.6,7.3574]
[1726241732608,0.41486,2410.1,2409.9,0.41488]
[1726241732807,0.41487,2410.0,2409.8,0.41489]
[1726241733018,0.41493,2409.7,2409.3,0.9757]
[1726241733221,0.988,2410.2,2409.6,3.2078]
[1726241733422,0.988,2410.2,2409.8,0.4149]
[1726241733423,2.02512,2410.2,2409.8,0.4149]
[1726241733615,0.41492,2409.7,2409.6,3.2078]
[1726241733816,1.03718,2410.0,2409.6,0.41493]
[1726241733817,0.41492,2409.8,2409.6,0.41493]
[1726241734117,0.41494,2409.6,2409.3,0.9757]
[1726241734316,1.03721,2410.0,2409.6,0.41493]
[1726241734614,0.41493,2409.7,2409.6,0.41494]
[1726241734920,5.02714,2410.1,2409.7,0.41491]
[1726241734921,1.03714,2410.1,2409.7,0.41491]
[1726241735111,0.988,2410.2,2409.5,3.2078]
[1726241735418,5.02716,2410.1,2409.7,0.41491]
[1726241735619,3.2078,2410.4,2409.9,1.03723]
[1726241735822,4.24483,2410.4,2410.0,0.41486]
[1726241736115,4.24483,2410.4,2409.8,3.2078]
[1726241736116,0.41483,2410.3,2410.2,0.41483]
[1726241736319,0.41483,2410.3,2409.8,3.2078]
[1726241736320,9.1034,2411.0,2409.8,3.2078]
[1726241736522,0.41481,2410.4,2410.3,0.41482]
[1726241736825,5.1134,2411.0,2410.1,3.2078]
[1726241737327,3.99,2411.6,2410.7,3.2078]
[1726241737522,3.99,2411.6,2410.5,1.03696]
[1726241737523,1.03665,2411.3,2410.5,0.41478]
[1726241737827,3.2078,2411.2,2410.2,4.1406]
[1726241738025,3.2078,2411.6,2410.5,3.2078]
[1726241738325,0.41472,2410.9,2410.5,3.62258]
[1726241738530,1.03662,2411.3,2410.6,0.41476]
[1726241738718,3.2078,2411.2,2410.6,0.41476]
[1726241738914,0.41469,2411.1,2410.7,0.41474]
[1726241739121,3.2078,2411.5,2410.9,3.2078]
[1726241739324,3.2078,2411.5,2410.6,3.2078]
[1726241739514,3.2078,2411.1,2410.6,3.2078]
[1726241739716,0.41474,2410.8,2410.6,3.2078]
[1726241739925,0.41477,2410.7,2410.2,0.41483]
[1726241740130,2.0177,2410.9,2410.1,3.2078]
[1726241740324,0.9809,2410.9,2410.1,3.62265]
[1726241740628,0.41481,2410.4,2410.1,3.2078]
[1726241740928,1.03684,2410.8,2410.1,3.2078]
[1726241741223,3.99,2410.3,2409.6,0.9328]
[1726241741428,3.2078,2410.5,2409.9,3.2078]
[1726241741620,3.62259,2410.5,2409.9,3.2078]
[1726241741823,3.2078,2410.5,2409.6,0.9328]
[1726241742128,3.2078,2410.5,2409.8,0.4149]
[1726241742423,0.41486,2410.1,2409.6,0.41494]
[1726241742726,4.9133,2410.4,2409.7,0.41492]
[1726241742925,0.41488,2410.0,2409.5,3.2078]
[1726241743117,0.4149,2409.9,2409.5,3.2078]
[1726241743317,1.03706,2410.3,2409.5,3.2078]
[1726241743318,0.41482,2410.3,2409.5,3.2078]
[1726241743524,0.9233,2410.4,2409.5,3.2078]
[1726241743715,4.9133,2410.4,2409.7,0.41491]
[1726241743920,0.41485,2410.1,2409.7,0.41491]
[1726241744130,3.2078,2410.3,2409.6,0.41493]
[1726241744424,3.2078,2410.3,2409.4,3.2078]
[1726241744617,4.9133,2410.4,2409.5,0.41495]
[1726241744818,1.03706,2410.3,2409.5,0.41495]
[1726241745029,0.41489,2410.0,2409.5,0.41495]
[1726241745230,0.41489,2410.0,2409.4,3.2078]
[1726241745430,0.41489,2409.9,2409.4,3.2078]
[1726241745622,0.4149,2409.9,2409.5,0.41495]
[1726241745923,0.9965,2410.1,2409.4,3.2078]
[1726241746130,0.41492,2409.7,2409.4,3.2078]
[1726241746320,6.02368,2410.1,2409.4,3.2078]
[1726241746520,0.41493,2409.7,2409.4,3.2078]
[1726241746729,6.02368,2410.1,2409.4,3.2078]
[1726241746730,1.03718,2410.0,2409.4,3.2078]
[1726241747029,0.41493,2409.7,2409.4,3.2078]
[1726241747528,0.41491,2409.8,2409.4,3.62277]
[1726241748026,0.41492,2409.7,2409.4,3.2078]
[1726241748223,1.03718,2410.0,2409.4,3.62277]
[1726241748419,0.41493,2409.7,2409.4,3.62277]
[1726241748620,4.9865,2410.1,2409.5,0.41495]
[1726241748621,0.41491,2409.8,2409.5,0.41495]
[1726241748824,0.41491,2409.8,2409.4,3.62276]
[1726241749028,0.41492,2409.8,2409.4,3.62277]
[1726241749221,4.9865,2410.1,2409.4,3.2078]
[1726241749627,0.41492,2409.8,2409.4,3.2078]
[1726241749822,0.41493,2409.7,2409.4,3.62276]
[1726241750023,0.41491,2409.8,2409.4,3.62276]
[1726241750224,4.9865,2410.1,2409.4,3.2078]
[1726241750625,0.9965,2410.1,2409.7,0.41491]
[1726241750830,0.41488,2410.0,2409.7,0.41491]
[1726241751120,0.9965,2410.1,2409.6,0.41493]
[1726241751430,0.4149,2409.9,2409.4,3.2078]
[1726241751640,0.4149,2409.9,2409.6,0.41494]
[1726241751823,0.9965,2410.1,2409.9,0.41488]
[1726241752022,0.9965,2410.1,2409.7,3.2078]
[1726241752023,1.41135,2410.1,2409.8,0.41489]
[1726241752227,0.41487,2410.0,2409.8,0.41489]
[1726241752631,2.03368,2410.1,2409.7,3.62272]
[1726241752831,2.03368,2410.1,2409.7,3.2078]
[1726241753134,0.4149,2409.8,2409.7,3.2078]
[1726241753428,0.9233,2410.4,2409.7,3.2078]
[1726241753631,0.9233,2410.4,2410.0,0.41486]
[1726241753632,0.41482,2410.3,2410.0,0.41486]
[1726241753835,0.41482,2410.3,2410.1,0.41485]
[1726241754131,1.33811,2410.4,2409.7,4.24507]
[1726241754335,0.41478,2410.6,2410.4,0.41479]
[1726241754522,0.41479,2410.5,2410.3,0.41481]
[1726241754827,0.4148,2410.5,2410.3,0.41482]
[1726241755031,3.2078,2411.5,2410.5,2.07394]
[1726241755222,0.41468,2411.2,2410.8,3.2078]
[1726241755425,0.41467,2411.2,2411.0,0.41469]
[1726241755626,0.41467,2411.2,2410.8,3.2078]
[1726241755627,0.998,2411.7,2411.1,3.2078]
[1726241756027,0.41463,2411.4,2411.2,0.41466]
[1726241756224,0.998,2411.7,2411.1,3.2078]
[1726241756628,0.41465,2411.3,2411.1,0.41468]
[1726241756830,0.41465,2411.3,2411.1,0.41467]
[1726241757036,0.41465,2411.3,2411.1,0.41468]
[1726241757231,0.41468,2411.2,2410.8,3.2078]
[1726241757437,0.41465,2411.3,2410.8,3.2078]
[1726241757632,0.41465,2411.3,2411.1,0.41468]
[1726241757837,0.41464,2411.4,2411.2,0.41466]
[1726241758027,0.41466,2411.3,2411.1,3.62248]
[1726241758233,0.41466,2411.2,2411.1,3.2078]
[1726241758537,0.41466,2411.3,2411.1,3.62248]
[1726241758737,0.41466,2411.3,2411.1,3.2078]
[1726241759127,1.0365,2411.6,2411.1,3.2078]
[1726241759431,1.0365,2411.6,2411.1,3.62247]
[1726241759432,0.41465,2411.3,2411.1,3.62247]
[1726241759625,0.41465,2411.3,2411.1,3.2078]
[1726241759626,0.41466,2411.3,2411.1,3.2078]
[1726241759823,0.41466,2411.2,2411.1,3.2078]
[1726241760633,0.41465,2411.3,2411.1,3.62248]
[1726241760831,4.2058,2411.7,2411.1,3.2078]
[1726241761032,0.41468,2411.1,2410.9,0.4147]
[1726241761332,0.41467,2411.2,2411.0,0.41469]
[1726241761528,44.0078,2411.5,2410.7,3.2078]
[1726241761923,1.03658,2411.4,2411.0,0.41469]
[1726241762134,40.8,2411.5,2410.9,3.2078]
[1726241762135,0.41469,2411.1,2410.9,3.62251]
[1726241762330,0.41473,2410.9,2410.5,0.985]
[1726241763028,0.41473,2410.8,2410.7,0.41474]
[1726241763330,1.03671,2411.1,2410.4,3.2078]
[1726241763641,4.24448,2411.2,2410.8,0.41472]
[1726241763936,4.24448,2411.2,2410.6,0.41476]
[1726241763937,0.41473,2410.8,2410.6,0.41476]
[1726241764230,0.41473,2410.8,2410.5,3.2078]
[1726241764231,0.41473,2410.9,2410.7,0.41475]
[1726241764541,0.922,2411.3,2410.8,4.24462]
[1726241764839,0.41465,2411.3,2411.2,0.41466]
[1726241765142,3.6224,2411.6,2411.5,0.41461]
[1726241765332,0.41453,2412.0,2411.8,0.41455]
[1726241765529,0.41453,2412.0,2410.7,1.9484]
[1726241765530,2.16688139,2412.3,2411.7,3.2078]
[1726241765725,3.25338915,2412.8,2412.0,3.2078]
[1726241765726,2.16688139,2412.6,2412.0,3.2078]
[1726241766028,0.41451,2412.1,2412.0,3.2078]
[1726241766231,2.16688139,2412.7,2412.0,3.2078]
[1726241766434,1.03611,2412.5,2411.8,0.41456]
[1726241766647,3.2078,2412.4,2411.7,4.206]
[1726241766935,3.2078,2412.4,2411.4,3.2078]
[1726241766936,0.4146,2411.6,2411.4,3.2078]
[1726241767140,0.41461,2411.5,2411.4,3.2078]
[1726241767338,4.24415,2412.0,2411.2,0.41466]
[1726241767339,8.23415,2412.0,2411.2,0.41466]
[1726241767632,0.41461,2411.5,2411.3,0.41465]
[1726241767826,1.03637,2411.9,2411.3,0.41464]
[1726241768034,0.41462,2411.5,2411.2,0.41465]
[1726241768232,0.41462,2411.5,2411.0,1.9484]
[1726241768433,1.03642,2411.8,2411.0,2.36309]
[1726241768434,0.41465,2411.3,2411.0,2.36309]
[1726241768641,1.03651,2411.6,2411.0,0.41469]
[1726241768642,0.41464,2411.4,2411.0,0.41469]
[1726241768827,1.03651,2411.6,2410.9,0.41471]
[1726241768828,0.41467,2411.2,2410.9,0.41471]
[1726241769228,0.41468,2411.1,2410.8,3.62252]
[1726241769435,0.41467,2411.2,2410.9,0.41471]
[1726241770026,0.41467,2411.2,2410.9,0.4147]
[1726241770436,4.24434,2411.5,2410.8,3.2078]
[1726241770743,5.02661,2411.4,2410.8,3.2078]
[1726241770937,0.4147,2411.0,2410.8,3.2078]
[1726241771129,1.03667,2411.2,2410.8,3.2078]
[1726241771336,3.99,2411.4,2410.8,3.2078]
[1726241771637,0.41468,2411.2,2410.9,0.41471]
[1726241771832,1.03662,2411.3,2410.8,3.62252]
[1726241772035,3.99,2411.4,2410.8,3.2078]
[1726241772233,0.4147,2411.0,2410.8,3.2078]
[1726241772543,3.99,2411.4,2410.9,0.4147]
[1726241772544,0.41468,2411.2,2410.9,0.4147]
[1726241772842,0.41467,2411.2,2410.9,0.4147]
[1726241773338,5.18332,2411.6,2410.8,3.2078]
[1726241773636,1.0364,2411.9,2411.3,0.41464]
[1726241773938,0.41464,2411.4,2411.1,0.41468]
[1726241774153,0.41464,2411.4,2410.9,3.2078]
[1726241774336,0.41464,2411.4,2411.1,0.41467]
[1726241774639,1.9582,2411.8,2410.9,3.2078]
[1726241774833,2.16688139,2412.3,2411.2,3.2078]
[1726241775143,3.99,2412.4,2411.3,1.9384]
[1726241775336,3.2078,2412.0,2411.3,1.9384]
[1726241775531,1.03624,2412.2,2411.3,1.9384]
[1726241775833,1.03637,2411.9,2411.2,3.2078]
[1726241776139,1.0365,2411.6,2411.2,3.2078]
[1726241776440,5.9069,2411.8,2411.2,3.2078]
[1726241776647,0.4146,2411.6,2411.3,0.41464]
[1726241776829,0.4146,2411.6,2411.2,3.2078]
[1726241776830,0.4146,2411.6,2411.2,3.62245]
[1726241777035,0.41461,2411.6,2411.2,3.62245]
[1726241777231,0.41463,2411.4,2411.2,3.2078]
[1726241777431,6.94334,2411.8,2409.7,0.212]
[1726241777432,5.02662,2411.3,2409.7,0.212]
[1726241777643,3.99,2410.8,2410.0,1.03718]
[1726241777831,3.99,2410.8,2410.5,0.41478]
[1726241778139,3.99,2410.8,2410.0,1.03718]
[1726241778140,1.03675,2411.0,2410.4,0.41479]
[1726241778333,3.99,2411.1,2410.0,1.03718]
[1726241778539,3.99,2411.1,2410.5,0.41478]
[1726241778540,8.23454,2411.1,2410.5,0.41478]
[1726241778741,0.41474,2410.8,2410.5,0.41478]
[1726241779044,0.41475,2410.7,2410.4,0.41479]
[1726241779246,3.2078,2410.9,2410.6,0.41476]
[1726241779543,3.2078,2410.9,2410.1,1.03711]
[1726241779544,3.2078,2411.0,2410.7,0.41474]
[1726241779747,3.2078,2411.1,2410.3,1.03705]
[1726241780047,3.2078,2411.0,2410.2,4.24489]
[1726241780241,0.41472,2410.9,2410.7,0.41474]
[1726241780443,1.03671,2411.1,2410.2,1.03707]
[1726241780647,3.2078,2411.0,2410.3,1.03705]
[1726241780940,0.41473,2410.9,2410.7,0.41475]
[1726241781544,0.41471,2411.0,2410.8,0.41473]
[1726241781741,3.2078,2411.1,2410.6,1.03693]
[1726241781943,3.2078,2411.1,2411.0,0.4147]
[1726241782243,0.41465,2411.3,2410.8,1.03681]
[1726241782439,0.9409,2411.5,2411.1,0.41467]
[1726241782643,0.41466,2411.3,2410.7,1.03686]
[1726241782840,0.41466,2411.3,2411.1,0.41467]
[1726241783150,3.2078,2411.6,2411.3,0.41464]
[1726241783345,0.41462,2411.5,2411.3,0.41464]
[1726241783644,3.2078,2411.6,2411.4,0.41463]
[1726241783854,3.2078,2411.6,2410.5,0.9403]
[1726241784036,2.16688139,2411.9,2410.5,0.9403]
[1726241784037,1.03669,2411.2,2410.5,0.9403]
[1726241784241,1.0366,2411.4,2410.6,1.0369]
[1726241784451,3.2078,2411.1,2411.0,0.0117273]
[1726241784638,3.62248,2411.1,2411.0,0.0117273]
[1726241784840,4.65919,2411.1,2411.0,0.0117273]
[1726241785134,0.41468,2411.1,2411.0,0.0117273]
[1726241785334,3.62248,2411.1,2411.0,0.0117273]
[1726241785534,0.41468,2411.1,2411.0,0.0117273]
[1726241785935,4.65919,2411.1,2411.0,0.0117273]
[1726241787048,0.41468,2411.1,2411.0,0.0117273]
[1726241787644,1.45139,2411.1,2411.0,0.0117273]
[1726241788145,7.45139,2411.1,2411.0,0.0117273]
[1726241788350,11.59859,2411.1,2411.0,0.0117273]
[1726241788850,12.6353,2411.1,2411.0,0.0117273]
[1726241789046,11.18391,2411.1,2410.5,0.9403]
[1726241789350,3.62255,2410.8,2410.5,0.41477]
[1726241789650,0.41475,2410.7,2410.5,0.41477]
[1726241789842,0.41477,2410.6,2410.4,1.35419]
[1726241790048,3.2078,2410.8,2410.4,0.9394]
[1726241790243,4.24478,2410.5,2410.1,0.41484]
[1726241790451,4.24478,2410.5,2410.0,0.9893]
[1726241790650,4.24478,2410.5,2410.2,0.41484]
[1726241790651,0.41479,2410.5,2410.2,0.41484]
[1726241790848,3.2078,2410.8,2410.0,0.9893]
[1726241791045,1.0368,2410.9,2410.1,0.41485]
[1726241791046,0.41481,2410.4,2410.1,0.41485]
[1726241791248,0.4148,2410.4,2410.1,0.41485]
[1726241791840,0.41482,2410.3,2410.0,1.40416]
[1726241792046,3.2078,2410.8,2410.0,0.9893]
[1726241792254,0.41478,2410.6,2410.3,0.41481]
[1726241792448,3.2078,2410.8,2410.0,0.9893]
[1726241792648,0.41477,2410.6,2410.3,0.41481]
[1726241793157,2.16688139,2411.2,2410.4,4.1488]
[1726241793347,2.16688139,2411.2,2410.1,1.03714]
[1726241793348,4.24451,2411.1,2410.0,4.1971]
[1726241793549,4.24455,2411.1,2410.1,1.03714]
[1726241793856,4.24454,2411.1,2410.6,0.41475]
[1726241794049,0.41475,2410.7,2410.5,0.41478]
[1726241794752,0.41475,2410.8,2410.1,1.03714]
[1726241794951,0.41476,2410.7,2410.5,0.41478]
[1726241795247,4.24466,2410.8,2410.0,4.1971]
[1726241795448,1.03688,2410.8,2410.0,4.1971]
[1726241795651,0.41479,2410.5,2410.3,0.41481]
[1726241796054,0.41481,2410.4,2410.2,0.41483]
[1726241796252,0.41485,2410.2,2410.0,1.40416]
[1726241796442,1.03691,2410.7,2410.0,0.9893]
[1726241796443,1.037,2410.5,2410.0,0.9893]
[1726241796643,3.2078,2410.4,2410.0,0.9893]
[1726241796951,0.41485,2410.1,2410.0,0.9893]
[1726241797848,1.037,2410.5,2410.0,0.9893]
[1726241797849,1.03697,2410.5,2410.0,1.40416]
[1726241798049,1.03701,2410.4,2410.0,0.9893]
[1726241798247,3.2078,2410.2,2410.0,0.9893]
[1726241798450,1.03701,2410.4,2410.0,0.9893]
[1726241798451,0.41485,2410.1,2410.0,0.9893]
[1726241798646,0.41483,2410.3,2410.0,1.40417]
[1726241798957,0.41484,2410.2,2410.0,0.9893]
[1726241799348,1.03701,2410.4,2410.0,0.9893]
[1726241799554,3.62264,2410.2,2410.0,0.9893]
[1726241799749,0.41484,2410.2,2410.0,0.9893]
[1726241799946,3.2078,2410.3,2409.9,0.9524]
[1726241800148,0.41484,2410.2,2409.9,1.36728]
[1726241800356,8.1364,2410.6,2410.1,0.41485]
[1726241800650,0.41483,2410.3,2409.9,0.9524]
[1726241800860,5.19334,2410.6,2409.9,0.9524]
[1726241801046,5.19334,2410.6,2410.4,0.41479]
[1726241801047,3.2078,2410.6,2410.4,0.41479]
[1726241801248,3.98,2410.7,2410.0,1.03718]
[1726241801560,0.4148,2410.5,2410.1,1.0122]
[1726241801757,5.0169,2410.7,2410.1,1.0122]
[1726241802057,0.41481,2410.4,2410.2,0.41483]
[1726241802254,0.41483,2410.3,2410.1,1.0122]
[1726241802455,0.41482,2410.3,2410.1,1.0122]
[1726241802652,0.41484,2410.2,2410.1,1.0122]
[1726241803266,5.01699,2410.5,2409.9,1.36728]
[1726241803267,0.41486,2410.1,2409.9,1.36728]
[1726241803752,0.41487,2410.0,2409.9,0.9524]
[1726241803952,3.2078,2410.2,2409.7,1.0122]
[1726241804168,0.41485,2410.1,2409.7,1.0122]
[1726241804356,0.41485,2410.2,2409.7,1.0122]
[1726241804561,4.9367,2410.4,2410.1,0.41485]
[1726241804562,0.41481,2410.4,2410.1,0.41485]
[1726241804753,0.4148,2410.5,2409.7,1.21928401]
[1726241805057,3.98,2410.7,2409.8,5.18687]
[1726241805254,3.98,2410.7,2409.9,3.2078]
[1726241805650,3.98,2410.7,2410.4,0.4148]
[1726241805851,3.98,2410.7,2409.9,3.2078]
[1726241806060,0.41477,2410.6,2409.9,3.2078]
[1726241806264,2.16688139,2411.1,2410.5,3.2078]
[1726241806451,2.16688139,2411.1,2410.0,12.72020287]
[1726241806452,2.16688139,2411.6,2410.8,3.2078]
[1726241806651,3.25338915,2411.9,2411.2,3.2078]
[1726241806652,2.16688139,2411.9,2411.2,3.2078]
[1726241806862,31.93265139,2412.1,2411.3,0.9584]
[1726241807160,29.76577,2412.1,2412.0,0.41453]
[1726241807356,20.16444425,2412.1,2412.0,0.41453]
[1726241807550,20.16444425,2412.1,2412.0,12.81841892]
[1726241807751,20.16444425,2412.1,2412.0,4.1456]
[1726241808152,20.57896425,2412.1,2411.5,3.62241]
[1726241808460,20.16444425,2412.1,2411.6,8.50175745]
[1726241808648,20.16444425,2412.1,2411.7,0.41457]
[1726241808848,20.16444425,2412.1,2411.7,0.41458]
[1726241809051,20.16444425,2412.1,2411.6,8.50175745]
[1726241809358,20.16444425,2412.1,2411.6,0.41459]
[1726241809561,20.16444425,2412.1,2411.7,0.41457]
[1726241809869,20.16444425,2412.1,2411.5,3.2078]
[1726241810055,20.16444425,2412.1,2411.6,0.41459]
[1726241810260,20.57895425,2412.1,2411.5,3.2078]
[1726241810452,20.16444425,2412.1,2411.6,0.41459]
[1726241810854,3.2078,2411.9,2411.2,3.2078]
[1726241811155,0.41453,2412.0,2411.3,8.6244351]
[1726241811355,20.57896425,2412.1,2411.3,8.6244351]
[1726241811555,20.16444425,2412.1,2411.7,3.2078]
[1726241811751,20.16444425,2412.1,2411.8,4.1464]
[1726241812057,20.16444425,2412.1,2411.8,3.2078]
[1726241812258,20.16444425,2412.1,2411.7,0.41457]
[1726241812654,20.16444425,2412.1,2411.9,0.41453]
[1726241813562,20.16444425,2412.1,2411.8,0.41455]
[1726241813960,20.16444425,2412.1,2411.9,3.2078]
[1726241814155,20.16444425,2412.1,2411.3,3.2078]
[1726241814359,0.41457,2411.8,2411.3,3.62244]
[1726241814560,1.43434,2412.0,2411.3,3.2078]
[1726241814766,0.41454,2411.9,2411.5,0.41461]